Cogmind - Beta 16.1 @@@ ROGUE MODE // 2026.02.21 @ 21:49:06 Player: AngelSpirit Result: Destroyed self with Subdweller Shrapnel Launcher Performance ------------- Evolutions (0) 0 Regions Visited (2) 400 Robots Destroyed (37) 185 Value Destroyed (824) 824 Prototype IDs (16) 320 Alien Tech Used (0) 0 Bonus (0) 0 TOTAL SCORE: 1729 Bonus ------- None Cogmind --------- Core Integrity 0/250 Matter 250/300 Energy 250/250 System Corruption 0% Temperature Cool (0) Movement Treading (320) Ox2 Location -10/Subcaves Parts ------- > --- POWER (1) -------- Ion Engine > --- PROPULSION (2) --- Light Treads Light Treads > --- UTILITY (2) ------ Huge Storage Unit Light Armor Plating > --- WEAPON (2) ------- Subdweller Beam Cannon Subdweller Shrapnel Launcher > --- INVENTORY (25) --- Light Ion Engine Light Treads Light Treads Makeshift Kinetic Plating Scrap Shield Hacking Suite Cobbler Unit Power Bank Rainbow Chip Subdweller Laser Subdweller Laser Subdweller Beam Cannon Subdweller Machine Gun Subdweller Machine Gun Subdweller Shrapnel Launcher 1B-0RG's Assimilator Shrapnel Trap Piercing Trap Piercing Trap Peak State ------------ > --- POWER ------------ Ion Engine > --- PROPULSION ------- Light Treads Light Treads > --- UTILITY ---------- Huge Storage Unit Light Armor Plating > --- WEAPON ----------- Subdweller Beam Cannon Subdweller Beam Cannon > --- INVENTORY -------- Light Ion Engine Light Treads Light Treads Makeshift Kinetic Plating Scrap Shield Hacking Suite Cobbler Unit Power Bank Rainbow Chip Subdweller Laser Subdweller Laser Subdweller Machine Gun Subdweller Machine Gun Subdweller Shrapnel Launcher Subdweller Shrapnel Launcher 1B-0RG's Assimilator Shrapnel Trap Piercing Trap Piercing Trap [Rating: 21] Favorites ----------- Power Ion Engine Engine Ion Engine Propulsion Light Treads Treads Light Treads Wheel Wheel Utility Light Armor Plating Device Seismic Detector Storage Huge Storage Unit Protection Light Armor Plating Weapon Subdweller Beam Cannon Energy Gun Subdweller Laser Energy Cannon Subdweller Beam Cannon Ballistic Gun Assault Rifle Launcher Subdweller Shrapnel Launcher Special Melee Weapon Datajack Build | -11 -10 -10 ------- Run | Yrd Mat Sub Slots Evolved . | . . . Power . | . . . Propulsion . | . . . Utility . | . . . Weapon . | . . . Parts Attached 26 | 7 10 9 Power 3 | 1 2 . Engine 3 | 1 2 . Core . | . . . Reactor . | . . . Propulsion 6 | 2 2 2 Treads 4 | . 2 2 Leg . | . . . Wheel 2 | 2 . . Hover . | . . . Flight . | . . . Utility 8 | 2 4 2 Device 1 | 1 . . Storage 4 | 1 3 . Processor . | . . . Hackware . | . . . Protection 3 | . 1 2 Artifact . | . . . Weapon 9 | 2 2 5 Energy Gun 2 | . 1 1 Energy Cannon 3 | . . 3 Ballistic Gun 2 | 2 . . Ballistic Cannon . | . . . Launcher 1 | . . 1 Special Weapon . | . . . Impact Weapon . | . . . Slashing Weapon . | . . . Piercing Weapon . | . . . Special Melee Weapon 1 | . 1 . Unidentified Prototypes . | . . . Parts Lost 2 | . . 2 Power . | . . . Propulsion . | . . . Utility 1 | . . 1 Weapon 1 | . . 1 Highest Loss Streak 1 | . . 1 To Critical Strikes . | . . . Average Backups 13 | 3 10 14 Power . | . . 1 Propulsion 3 | 2 5 3 Utility 4 | . 3 5 Weapon 2 | 1 1 3 Tool/Special . | . . . Unused Backups 24 | . 5 19 Power 1 | . . 1 Propulsion 11 | . 4 7 Utility 6 | . . 6 Weapon 5 | . 1 4 Tool/Special 1 | . . 1 Average Slot Usage (%) 100 | . 100 100 Engine 14 | . 14 14 Treads 27 | . 27 28 Device 3 | . 9 2 Storage 14 | . 14 14 Protection 10 | . 4 11 Energy Cannon 17 | . . 22 Ballistic Gun 8 | . 27 3 Peak Build Rating 21 | 7 8 21 Average Rating 15 | 5 7 17 On Entrance 5 | . 7 8 Avg Prop Armor Cover (%) . | . . . Naked Turns . | . . . Heaviest Build 104 | 15 30 104 Greatest Support 40 | 20 40 40 Greatest Overweight (x) 2 | . . 2 Average Overweight (x) . | . . 1 Largest Inventory Capacity 25 | 8 25 25 Average Capacity 20 | 7 11 23 Most Carried 25 | 6 15 25 Average Carried 18 | 3 10 21 Final Capacity 25 | 8 15 25 Final Carried 25 | 6 15 25 Class Distribution -------------------- 100% | Mutant Dominant Class ---------------- Mutant | -10/Materials Mutant | -10/Subcaves Resources | -11 -10 -10 ----------- Run | Yrd Mat Sub Matter Collected 1153 | 251 532 370 Remotely . | . . . Salvage Created 974 | 61 349 564 Parts 77 | 8 25 44 Haulers Intercepted 2 | . 2 . Recyclers Shooed 1 | . 1 . Parts Field Recycled . | . . . Retrieved Matter . | . . . Parts Self-Destructed 10 | . . 10 Prevented . | . . . Parts Restored . | . . . Kills | -11 -10 -10 ------- Run | Yrd Mat Sub Combat Hostiles Destroyed 26 | . 8 18 Guns 8 | . 8 . Cannons 10 | . . 10 AOE 6 | . . 6 Classes Destroyed 9 | 1 5 3 Tunneler 3 | 3 . . Hauler 2 | . 2 . Operator 1 | . 1 . Turret 2 | . . 2 Watcher 3 | . 3 . Swarmer 12 | . 6 6 Grunt 3 | . 2 1 Cobbler 1 | . . 1 Subdweller 11 | . . 11 Best Kill Streak 6 | 1 3 6 Combat Bots Only 4 | . 3 4 Max Kills in Single Turn 2 | 1 2 2 Gunslinging . | . . . Exploded 2 | . . 2 Melee . | . . . Uniques/NPCs Destroyed . | . . . Combat | -11 -10 -10 -------- Run | Yrd Mat Sub Hostile Shots Fired 105 | . 49 56 Missed 32 | . 14 18 Hits 73 | . 35 38 Projectile 73 | . 35 38 Critical Strikes 4 | . 2 2 Damage Taken 1045 | . 315 730 Core 253 | . 73 180 Absorbed by Shields . | . . . Core Remaining (%) 100 | 100 . . Volleys Fired 159 | 10 49 100 Largest 2 | 2 2 2 Hottest 160 | 40 60 160 Shots Fired 237 | 20 98 119 Gun 145 | 20 98 27 Cannon 81 | . . 81 Launcher 11 | . . 11 Special . | . . . Kinetic 137 | 20 91 26 Thermal 93 | . . 93 Explosive . | . . . Electromagnetic 7 | . 7 . Robot Hit Streak 22 | 3 7 22 Robot Miss Streak 6 | 3 6 3 Penetration Max . | . . . Secondary Targets 1 | . 1 . Max Gunslinging Chain 1 | . 1 . Shots Hit Robots 120 | 11 56 53 Core Hits 43 | 3 19 21 Critical Kills 2 | . . 2 Critical Parts Destroyed . | . . . Critical Strikes 2 | . . 2 Meltdown 2 | . . 2 Melee Attacks 1 | . 1 . Impact . | . . . Slashing . | . . . Piercing . | . . . Sneak Attacks 1 | . 1 . Combat Hostiles . | . . . Follow-up Attacks . | . . . Damage Inflicted 2860 | 146 748 1966 Guns 1012 | 146 748 118 Cannons 1155 | . . 1155 Explosions 693 | . . 693 Melee . | . . . Ramming . | . . . Kinetic 1661 | 146 704 811 Thermal 1155 | . . 1155 Explosive . | . . . Electromagnetic 44 | . 44 . Impact . | . . . Slashing . | . . . Piercing . | . . . Highest Corruption . | . . . Average Corruption . | . . . Corruption Purged . | . . . Corruption Blocked . | . . . Overload Shots . | . . . Overflow Damage 44 | . . 44 Projectiles . | . . . Explosions 44 | . . 44 Melee . | . . . Knockbacks . | . . . Impact . | . . . Kinetic . | . . . Secondary . | . . . Self-Inflicted Damage 92 | . . 92 Shots 3 | . . 3 Rammed . | . . . Targets Rammed . | . . . Kicked . | . . . Crushed . | . . . Highest Temperature 366 | . 30 366 Average Temperature 63 | . 12 71 Received Heat Transfer 174 | . 60 114 Effects 1 | . . 1 Energy Bleed 1 | . . 1 Siege Activations . | . . . Martial Activations . | . . . Shielding Activations . | . . . Robots Disrupted . | . . . Combat Hostiles . | . . . Robots Corrupted . | . . . Combat Hostiles . | . . . Parts Fried . | . . . Impact Corruptions . | . . . Robots Melted 2 | . . 2 Combat Hostiles 2 | . . 2 Parts Melted 4 | . . 4 Heat Transferred 1517 | . . 1517 Parts Sabotaged . | . . . Parts Stolen . | . . . Parts Stripped . | . . . Power Chain Reactions . | . . . Alert | -11 -10 -10 ------- Run | Yrd Mat Sub Maximum Alert Level . | . . . Low Security (%) 100 | 100 100 . Level 1 . | . . . Level 2 . | . . . Level 3 . | . . . Level 4 . | . . . Level 5 . | . . . High Security . | . . . Max Security . | . . . Peak Influence 74 | 5 74 . Initial . | . . . Average 19 | 1 20 . Influence Increases 693 | 15 338 340 Destroy 0b10 Robot/C 340 | . 160 180 Destroy 0b10 Robot/NC 45 | 15 30 . Destroy Leader 50 | . 40 10 Successful Hack 33 | . 33 . Select Force Hacks 30 | . 30 . Lose Combat Pursuer 195 | . 45 150 Influence Decreases 644 | 15 312 317 Entered New Map 14 | . . 14 Time Decay 628 | 15 312 301 Lost Part 2 | . . 2 Squads Dispatched 1 | . 1 . Investigation 1 | . 1 . Extermination . | . . . Reinforcement . | . . . Assault . | . . . Garrison . | . . . Intercept . | . . . Searches Triggered . | . . . Construction Impeded . | . . . Haulers Reinforced . | . . . Active Scanning Responses . | . . . Cargo Convoy Interrupts . | . . . Stealth | -11 -10 -10 --------- Run | Yrd Mat Sub Distress Signals 2 | . 2 . Communications Jammed . | . . . Distress Signals . | . . . Times Spotted 41 | . 20 21 Peak Tracking Total 6 | . 6 4 Tactical Retreats 4 | . 3 1 Traps | -11 -10 -10 ------- Run | Yrd Mat Sub Traps Triggered 1 | . . 1 Indirectly . | . . . Trap Hack Attempts 47 | . 47 . Triggered . | . . . Disarmed . | . . . Reprogrammed 6 | . 6 . Reused . | . . . Traps Extracted . | . . . Installed . | . . . Triggered . | . . . Most Traps Carried 3 | . . 3 Machines | -11 -10 -10 ---------- Run | Yrd Mat Sub Machines Disabled 5 | . . 5 Max in Single Turn 4 | . . 4 Machines Repaired . | . . . Machines Dismantled . | . . . Machines Sabotaged . | . . . Overloaded Fab Kills . | . . . Hacking | -11 -10 -10 --------- Run | Yrd Mat Sub Machines Accessed 9 | . 7 2 Terminals 6 | . 6 . Fabricators . | . . . Repair Stations . | . . . Recycling Units 1 | . 1 . Scanalyzers . | . . . Garrison Access . | . . . Total Hacks 29 | . 23 6 Successful 18 | . 12 6 Failed 10 | . 10 . Catastrophic 2 | . 2 . Database Lockouts 1 | . 1 . Manual 11 | . 11 . Terminals 22 | . 22 . Fabricators . | . . . Repair Stations . | . . . Recycling Units 1 | . 1 . Scanalyzers . | . . . Garrison Access . | . . . Terminal Hacks 16 | . 10 6 Record 5 | . . 5 Robot Analysis 3 | . 3 . Prototype ID Bank 2 | . 2 . Emergency Access Points 1 | . 1 . Locate Traps 2 | . 2 . Registered Components 1 | . 1 . Zone Layout 1 | . 1 . Proto ID Catalog 1 | . . 1 Fabricator Hacks . | . . . Repair Station Hacks . | . . . Recycling Unit Hacks . | . . . Scanalyzer . | . . . Garrison Access Hacks . | . . . Unauthorized Hacks 2 | . 2 . Terminals 1 | . 1 . Track 1 | . 1 . Fabricators . | . . . Repair Stations . | . . . Recycling Units 1 | . 1 . Tunnel 1 | . 1 . Scanalyzers . | . . . Garrison Access . | . . . Data Cores Recovered 1 | . 1 . Used . | . . . Hacking Detections 5 | . 5 . Full Trace Events 2 | . 2 . Feedback Events . | . . . Feedback Blocked . | . . . Robot Schematics Acquired . | . . . Robots Built . | . . . Authchips . | . . . Time . | . . . Total Robot Build Rating . | . . . Part Schematics Acquired . | . . . Parts Built . | . . . Authchips . | . . . Time . | . . . Total Part Build Rating . | . . . Part Studies Acquired . | . . . Parts Repaired . | . . . Time . | . . . Parts Recycled . | . . . Recycled Matter . | . . . Retrieved Matter . | . . . Retrieved Components . | . . . Parts Scanalyzed . | . . . Part Schematics Acquired . | . . . Parts Damaged . | . . . Bothacking | -11 -10 -10 ------------ Run | Yrd Mat Sub Used RIF Installer . | . . . Robots Hacked 1 | . 1 . Non-combat 1 | . 1 . Combat . | . . . Robot Hacks Applied 1 | . 1 . parse_system 1 | . 1 . Relay Couplers Released . | . . . Fabnet Peak Effective % . | . . . Robots Rewired . | . . . Allies Hacked . | . . . Hacks Repelled . | . . . Allies | -11 -10 -10 -------- Run | Yrd Mat Sub Total Allies . | . . . Largest Group . | . . . Highest-Rated Group . | . . . Highest-Rated Ally . | . . . Total Orders . | . . . Ally Attacks . | . . . Total Damage . | . . . Kills . | . . . Allies Corrupted . | . . . Allies Melted . | . . . Intel | -11 -10 -10 ------- Run | Yrd Mat Sub Active Infowar (turns) 1585 | 21 849 715 Seismic 1585 | 21 849 715 Robot Analysis Total 3 | . 3 . Derelict Logs Recovered 2 | . . 2 Drone Launches . | . . . Drone Recoveries . | . . . Exploration | -11 -10 -10 ------------- Run | Yrd Mat Sub Turns Passed 5794 | 112 1302 4380 Spaces Moved 2045 | 80 623 1342 Core 1 | 1 . . Treads 1928 | . 586 1342 Legs . | . . . Wheels 116 | 79 37 . Hover . | . . . Flight . | . . . Fastest Speed 50 | 50 80 160 Average Speed 233 | 79 155 278 Slowest Speed 320 | 80 160 320 Overloaded Moves . | . . . Propulsion Burnouts . | . . . Robots Hopped . | . . . Potential Cave-ins . | . . . Cave-ins Triggered . | . . . Exploration Rate (%) 53 | 3 86 71 Regions Visited 2 Branch Regions 1 Pre-discovered Areas 3 | . 1 2 Known Exits Taken . | . . . Unknown Exits Taken 2 | 1 1 . Scrap Searched 5 | . . 5 Spaces Dug 27 | . . 27 Terrain Destroyed 144 | . . 144 Melee . | . . . Projectile 14 | . . 14 AOE 130 | . . 130 Terrain Rammed . | . . . Walls Destroyed . | . . . Machines Disabled . | . . . Actions | -11 -10 -10 --------- Run | Yrd Mat Sub Total 2828 | 104 859 1865 Wait 470 | 2 91 377 Move 2043 | 79 622 1342 Hop . | . . . Pick Up 40 | 6 18 16 Fast Attach 9 | 7 . 2 Attach 4 | . . 4 Detach 2 | . . 2 Swap 28 | . 18 10 Drop 25 | . 13 12 Fire 159 | 10 49 100 Melee 1 | . 1 . Ram . | . . . Kick . | . . . Crush . | . . . Escape Stasis . | . . . Rewire . | . . . Trap 47 | . 47 . Miscellaneous . | . . . Route ------- -11/Scrapyard -10/Materials (discovered 5 exits: [*Mat x2] / [*Min x2] / *Sub) -10/Subcaves (discovered 3 exits: [*Mat x2] / [*Rec]) History --------- Turn | Location | Event 33 | -11/Scrapyard | Discovered new exit (range 15) 113 | -11/Scrapyard | Entered Materials 165 | -10/Materials | Discovered new exit (range 10) 304 | -10/Materials | Build established: Mutant 307 | -10/Materials | Discovered new exit (range 16) 350 | -10/Materials | Central database locked down 438 | -10/Materials | Discovered new exit (range 14) 774 | -10/Materials | Discovered new exit (range 5) 1144 | -10/Materials | Discovered new exit (range 10) 1415 | -10/Materials | Entered Subcaves 1416 | -10/Subcaves | Shifting Twisted Machinery released Sub. Shrapnel Launcher 1416 | -10/Subcaves | Approached by a straggling Scientist 1417 | -10/Subcaves | Shifting Twisted Machinery released Shrapnel Trap 1450 | -10/Subcaves | Core integrity fell below 50% 1481 | -10/Subcaves | Discovered new exit (range 16) 1519 | -10/Subcaves | Shifting Twisted Machinery released Sub. Power Source 1599 | -10/Subcaves | Learned 2 Materials zone layouts 1606 | -10/Subcaves | Visited Clippyterm 1611 | -10/Subcaves | Learned Factory garrison access intel 1627 | -10/Subcaves | Discovered new exit (range 14) 1704 | -10/Subcaves | Learned location of Zion (-7) 2028 | -10/Subcaves | Visited 4L-MR0's lab 2051 | -10/Subcaves | Found Rainbow Chip 2058 | -10/Subcaves | Found Prototype Special Melee Weapon 2468 | -10/Subcaves | A swath of the cavern ceiling suddenly collapsed 2776 | -10/Subcaves | Shifting Twisted Machinery released Sub. Beam Cannon 2787 | -10/Subcaves | Shifting Twisted Machinery released Flamer 2880 | -10/Subcaves | A swath of the cavern ceiling suddenly collapsed 4313 | -10/Subcaves | Discovered new exit (range 8) 4355 | -10/Subcaves | A Subdweller sparked back to life 4355 | -10/Subcaves | A Subdweller sparked back to life 4413 | -10/Subcaves | Found Power Bank 4649 | -10/Subcaves | Core integrity fell below 20% 5795 | -10/Subcaves | Destroyed self with Subdweller Shrapnel Launcher Last Messages --------------- 04360_ B1-0D7(R) destroyed. 04367_ 17-7CS(R) destroyed. 04379_ AB-2T2(R): "WEHOME!" 04400_ Sub. Optics melted. 04400_ AB-2T2(R) destroyed. 04413_ Subatomizers dissect the Wheel. 04413_ Acquired Power Bank. 04427_ Subatomizers dissect the Wheel. 04439_ Acquired Sub. Machine Gun. 04447_ Acquired Sub. Laser. 04457_ Acquired Sub. Machine Gun. 04466_ Subatomizers dissect the Disposable Heat Sink. 04647_ OA-P8Z(R) destroyed. 04650_ Q2-IF4(R) destroyed. 04653_ Overheating: Energy bleed (-34). 04671_ Dropped Lgt. Armor Plating. 04671_ Acquired Scrap Shield. 04672_ Acquired 10 matter. 05793_ S-10 Pest destroyed. Map ----- +----------------------------------------------------+ | ?????????????????????????? ###??## #????? | | ?????????????????????????# ## #????## #????? | | ?????????????????????????? ?## #?????# #????? | | ?????????????????????????? ???##??????## #????? | | ?????????????????????????? %????????????# ##???? | | ????????????????????????????????????????## #???? | | ?????????????????????????????????????????# ##???? | | ????????????????????????????????????????## #???? | | ????????????????????????????????????????# ##???? | | ????????????????????????????????????????## #?### | | ????????????????????????? ???# ???????# ### | | ????????????????????????? ?### ?????# ### | | ????????????????????????? s#;#?# ###??## ## | | ???????????????????????## ##?# ##?# ### # | | ???????????????????????#; ;;#?# ### #?#### | | ???????????????????????#;; ;#?# #?###? | | ?????????????????#######;;* ;??# ## ## | | ?????????????????# ;;%* ;??## # | | ?????????????????# ?#### ## | | ??????????????????# ## ### ####? | | ???????????? ###???# ## #### ##???? | | ??????????? ## ;;## ### #?###? | | ???????????? ;;# ## ### ## | | ??????????????# | | ??????????????# | | ??????????????????# @ ### | | ??????????????????## ##### #?# | | ???????????????????## ????## #### | | ????????????????????## ??????## ## | | ?????????????????????## ???????##### ## | | ??????????????????????#????????????##### | | ???????????????????????????????????????# ### | | ??????????????????????????????????????# #??# | | ??????????????????????????????????????###???## # | | ?????????????????????????????????????????????##### | | ?????????????????????????????????????????????????? | | ?????????????????????????????????????????????????? | | ?????????????????????????????????????????????????? | | ?????????????????????????????????????????????????? | | ?????????????????????????????????????????????????? | | ?????????????????????????????????????????????????? | | ?????????????????????????????????????????????????? | | ?????????????????????????????????????????????????? | | ?????????????????????????????????????????????????? | | ?????????????????????????????????????????????????? | | ?????????????????????????????????????????????????? | | ?????????????????????????????????????????????????? | | ?????????????????????????????????????????????????? | | ?????????????????????????????????????????????????? | | | +----------------------------------------------------+ Best States ------------- Heat Dissipation 25 Energy Generation 10 Energy Capacity 250 Matter Stores 300 Matter Capacity 300 Sight Range 16 Terrain Scan Density 10 Armor Coverage 150 Evasion (%) 44 Recoil Reduction 2 Item Schematics ----------------- None Robot Schematics ------------------ None Fabricated ------------ Nothing Repaired ---------- Nothing Studied --------- None Alien Tech Used ----------------- None Achievements -------------- None Challenges ------------ None Game ------ Seed WeldingPhasingRegenerator Manual? 0 Play Time 00:22:18 Cumulative 573.7 hours Start 2026.02.21 @ 21:27:32 End 2026.02.21 @ 21:49:06 Sessions 1 Manual Loads 0 Difficulty Rogue Special Mode None Game No. 192 Rogue 192 Adventurer 0 Explorer 0 Win Type - Total 19 Types 8/0/5/1/1/0/0/1/1/2 Lore% 91 Gallery% 84 Achievement% 76 Wizard Run 0 Options --------- Layout 1 ASCII 0 Keyboard 0 Movement Mouse Keybinds 0 Fullscreen 2 Font 32/SmallcapsGlow Map View 50x35 Zoom Use 0% Tactical HUD 1 Map Filters NONE Filters NONE Steam 1 RUN: 028ea112-9ae8-4838-a90a-7339a04d2031